Cogmind - Beta 11.1 *** ADVENTURER MODE // 2022.07.20 @ 13:39:38 Player: Olexender Result: Destroyed by as-63636 with Assembled Heavy Rifle Performance ------------- Evolutions (0) 0 Regions Visited (2) 400 Robots Destroyed (31) 155 Value Destroyed (505) 505 Prototype IDs (4) 80 Alien Tech Used (0) 0 Bonus (0) 0 TOTAL SCORE: 1140 Bonus ------- None Cogmind --------- Core Integrity 0/250 Matter 290/300 Energy 117/140 System Corruption 4% Temperature Cool (0) Movement Walking (120) Location -10/Mines Parts ------- > --- POWER (1) -------- Light Deuterium Engine > --- PROPULSION (2) --- Aluminum Leg Aluminum Leg > --- UTILITY (2) ------ Structural Scanner Experimental Sensor Array > --- WEAPON (2) ------- Hammer > --- INVENTORY (5) ---- Wheel Hover Unit High-capacity Matter Pod (200) Peak State ------------ > --- POWER ------------ Light Deuterium Engine > --- PROPULSION ------- Aluminum Leg Aluminum Leg > --- UTILITY ---------- Structural Scanner Experimental Sensor Array > --- WEAPON ----------- Hammer > --- INVENTORY -------- Light Ion Engine Wheel Hover Unit High-capacity Matter Pod Improved Terrain Scanner [Rating: 16] Favorites ----------- Power Ion Engine Engine Ion Engine Propulsion Aluminum Leg Leg Aluminum Leg Hover Unit Hover Unit Utility Structural Scanner Device Structural Scanner Weapon Assault Rifle Energy Gun EM Pulse Gun Ballistic Gun Assault Rifle Launcher Grenade Launcher Impact Weapon Hammer Build | -11 -10 -10 ------- Run | Scr Mat Min Slots Evolved . | . . . Power . | . . . Propulsion . | . . . Utility . | . . . Weapon . | . . . Parts Attached 32 | 8 10 14 Power 6 | 2 1 3 Engine 6 | 2 1 3 Core . | . . . Reactor . | . . . Propulsion 13 | 2 4 7 Treads . | . . . Leg 6 | 2 . 4 Wheel . | . . . Hover 7 | . 4 3 Flight . | . . . Utility 5 | 2 2 1 Device 5 | 2 2 1 Storage . | . . . Processor . | . . . Hackware . | . . . Protection . | . . . Artifact . | . . . Weapon 8 | 2 3 3 Energy Gun 1 | 1 . . Energy Cannon . | . . . Ballistic Gun 4 | 1 3 . Ballistic Cannon . | . . . Launcher 1 | . . 1 Special Weapon . | . . . Impact Weapon 2 | . . 2 Slashing Weapon . | . . . Piercing Weapon . | . . . Special Melee Weapon . | . . . Unidentified Prototypes 1 | . . 1 Parts Lost 12 | . 3 9 Power 2 | . . 2 Propulsion 5 | . 2 3 Utility 2 | . 1 1 Weapon 3 | . . 3 Highest Loss Streak 6 | . 3 6 To Critical Strikes . | . . . Average Slot Usage (%) 84 | . 97 69 Engine 12 | . 14 10 Leg 14 | . 12 16 Hover 11 | . 14 8 Device 23 | . 26 19 Ballistic Gun 15 | . 27 1 Launcher 3 | . . 7 Impact Weapon 2 | . . 5 Naked Turns . | . . . Heaviest Build 11 | 10 11 9 Greatest Support 20 | 20 20 20 Greatest Overweight (x) 1 | 1 . 1 Average Overweight (x) . | . . . Largest Inventory Capacity 5 | 5 5 5 Average Capacity 5 | 5 5 5 Most Carried 5 | 5 5 5 Average Carried 3 | 4 3 3 Final Capacity 5 | 5 5 5 Final Carried 5 | 5 3 3 Class Distribution -------------------- 83% | Mutant 16% | Scavenger-Mutant Dominant Class ---------------- Mutant | -10/Materials Mutant | -10/Mines Resources | -11 -10 -10 ----------- Run | Scr Mat Min Matter Collected 1060 | 289 510 261 Remotely . | . . . Salvage Created 1024 | 175 536 313 Parts 56 | 14 35 7 Haulers Intercepted 1 | . 1 . Recyclers Shooed 1 | . . 1 Parts Field Recycled . | . . . Retrieved Matter . | . . . Parts Self-Destructed . | . . . Prevented . | . . . Kills | -11 -10 -10 ------- Run | Scr Mat Min Combat Hostiles Destroyed 27 | . 13 14 Melee 2 | . . 2 Guns 14 | . 13 1 AOE 11 | . . 11 Classes Destroyed 8 | 2 5 1 Worker 3 | . 1 2 Tunneler 6 | 4 . 2 Hauler 1 | . 1 . Recycler 3 | 1 . 2 Watcher 3 | . 3 . Swarmer 6 | . 6 . Grunt 9 | . 7 2 Assembled 12 | . . 12 Best Kill Streak 7 | 5 7 7 Combat Bots Only 7 | . 5 7 Max Kills in Single Turn 2 | 1 2 2 Gunslinging 1 | . 1 . Exploded 2 | . . 2 Melee 1 | . . 1 Uniques/NPCs Destroyed . | . . . Combat | -11 -10 -10 -------- Run | Scr Mat Min Damage Taken 1055 | . 491 564 Core 251 | . 85 166 Absorbed by Shields . | . . . Core Remaining (%) 100 | 100 . . Volleys Fired 84 | 11 42 31 Largest 2 | 2 2 2 Hottest 60 | 60 60 40 Shots Fired 137 | 20 84 33 Gun 122 | 20 84 18 Cannon . | . . . Launcher 15 | . . 15 Special . | . . . Kinetic 107 | 9 80 18 Thermal . | . . . Explosive 15 | . . 15 Electromagnetic 15 | 11 4 . Robot Hit Streak 14 | 7 14 8 Robot Miss Streak 3 | 1 3 2 Penetration Max . | . . . Secondary Targets 5 | . 5 . Max Gunslinging Chain 1 | . 1 . Shots Hit Robots 105 | 14 58 33 Core Hits 54 | 7 24 23 Critical Kills 1 | . 1 . Critical Parts Destroyed 5 | . . 5 Critical Strikes 6 | . 1 5 Destroy 1 | . 1 . Smash 5 | . . 5 Melee Attacks 13 | . . 13 Impact 13 | . . 13 Slashing . | . . . Piercing . | . . . Sneak Attacks 7 | . . 7 Combat Hostiles . | . . . Follow-up Attacks . | . . . Damage Inflicted 2140 | 165 774 1201 Guns 1071 | 165 754 152 Cannons . | . . . Explosions 489 | . . 489 Melee 518 | . . 518 Ramming 62 | . 20 42 Kinetic 902 | 33 717 152 Thermal . | . . . Explosive 489 | . . 489 Electromagnetic 169 | 132 37 . Impact 518 | . . 518 Slashing . | . . . Piercing . | . . . Highest Corruption 4 | . . 4 Average Corruption 3 | . . 3 Corruption Purged . | . . . Corruption Blocked . | . . . Effects 10 | . . 10 Message Errors 4 | . . 4 Matter Fused 1 | . . 1 Energy Discharges 4 | . . 4 Data Loss (minor) 1 | . . 1 Overload Shots . | . . . Overflow Damage 332 | . . 332 Projectiles . | . . . Explosions 17 | . . 17 Melee 315 | . . 315 Knockbacks 1 | . . 1 Impact 1 | . . 1 Kinetic . | . . . Secondary . | . . . Self-Inflicted Damage 208 | . 10 198 Shots 10 | . . 10 Rammed 14 | . 2 12 Targets Rammed 15 | . 2 13 Kicked 1 | . . 1 Crushed . | . . . Highest Temperature 49 | 40 49 10 Average Temperature 14 | 19 15 3 Received Heat Transfer 375 | . 171 204 Siege Activations . | . . . Robots Corrupted . | . . . Combat Hostiles . | . . . Parts Fried 5 | . . 5 Impact Corruptions 13 | . . 13 Robots Melted . | . . . Combat Hostiles . | . . . Parts Melted . | . . . Heat Transferred . | . . . Parts Sabotaged . | . . . Parts Stolen . | . . . Parts Stripped . | . . . Power Chain Reactions . | . . . Missiles Intercepted . | . . . Alert | -11 -10 -10 ------- Run | Scr Mat Min Peak Influence 279 | 25 279 139 Initial 13 | . 13 . Average 89 | 9 117 68 Maximum Alert Level 1 | . 1 . Low Security (%) 84 | 100 69 100 Level 1 15 | . 30 . Level 2 . | . . . Level 3 . | . . . Level 4 . | . . . Level 5 . | . . . High Security . | . . . Max Security . | . . . Squads Dispatched 2 | . 2 . Investigation 2 | . 2 . Extermination . | . . . Reinforcement . | . . . Assault . | . . . Garrison . | . . . Intercept . | . . . Searches Triggered . | . . . Construction Impeded . | . . . Haulers Reinforced . | . . . Active Scanning Responses . | . . . Cargo Convoy Interrupts . | . . . Stealth | -11 -10 -10 --------- Run | Scr Mat Min Distress Signals . | . . . Communications Jammed . | . . . Distress Signals . | . . . Times Spotted 39 | . 18 21 Peak Tracking Total 7 | . 5 7 Tactical Retreats 1 | . . 1 Traps | -11 -10 -10 ------- Run | Scr Mat Min Traps Triggered 1 | . 1 . Indirectly . | . . . Trap Hack Attempts . | . . . Triggered . | . . . Disarmed . | . . . Reprogrammed 2 | . 2 . Reused . | . . . Traps Extracted . | . . . Installed . | . . . Triggered . | . . . Machines | -11 -10 -10 ---------- Run | Scr Mat Min Machines Disabled . | . . . Max in Single Turn . | . . . Machines Sabotaged . | . . . Garrisons Compromised . | . . . Overloaded Fab Kills . | . . . Hacking | -11 -10 -10 --------- Run | Scr Mat Min Machines Accessed 11 | . 10 1 Terminals 9 | . 8 1 Fabricators . | . . . Repair Stations . | . . . Recycling Units 2 | . 2 . Scanalyzers . | . . . Garrison Access . | . . . Total Hacks 23 | . 21 2 Successful 16 | . 14 2 Failed 7 | . 7 . Catastrophic . | . . . Database Lockouts . | . . . Manual . | . . . Terminals 21 | . 19 2 Fabricators . | . . . Repair Stations . | . . . Recycling Units 2 | . 2 . Scanalyzers . | . . . Garrison Access . | . . . Terminal Hacks 14 | . 12 2 Prototype ID Bank 2 | . 2 . Level Access Points 1 | . . 1 Unreport Threat 2 | . 2 . Locate Traps 1 | . 1 . Reprogram Traps 1 | . 1 . Dispatch Records 2 | . 1 1 Assault Status 1 | . 1 . Hauler Manifests 1 | . 1 . Registered Components 1 | . 1 . Zone Layout 2 | . 2 . Fabricator Hacks . | . . . Repair Station Hacks . | . . . Recycling Unit Hacks 2 | . 2 . Report Inventory 2 | . 2 . Scanalyzer . | . . . Garrison Access Hacks . | . . . Unauthorized Hacks . | . . . Terminals . | . . . Fabricators . | . . . Repair Stations . | . . . Recycling Units . | . . . Scanalyzers . | . . . Garrison Access . | . . . Data Cores Recovered . | . . . Used . | . . . Hacking Detections 7 | . 6 1 Full Trace Events 1 | . 1 . Feedback Events . | . . . Feedback Blocked . | . . . Robot Schematics Acquired . | . . . Robots Built . | . . . Authchips . | . . . Time . | . . . Total Robot Build Rating . | . . . Part Schematics Acquired . | . . . Parts Built . | . . . Authchips . | . . . Time . | . . . Total Part Build Rating . | . . . Parts Repaired . | . . . Time . | . . . Parts Recycled . | . . . Recycled Matter . | . . . Retrieved Matter . | . . . Retrieved Components . | . . . Parts Scanalyzed . | . . . Part Schematics Acquired . | . . . Parts Damaged . | . . . Bothacking | -11 -10 -10 ------------ Run | Scr Mat Min Used RIF Installer . | . . . Robots Hacked . | . . . Non-combat . | . . . Combat . | . . . Robot Hacks Applied . | . . . Relay Couplers Released . | . . . Fabnet Peak Effective % . | . . . Robots Rewired . | . . . Allies Hacked . | . . . Hacks Repelled . | . . . Allies | -11 -10 -10 -------- Run | Scr Mat Min Total Allies . | . . . Largest Group . | . . . Highest-Rated Group . | . . . Highest-Rated Ally . | . . . Total Orders . | . . . Ally Attacks . | . . . Total Damage . | . . . Kills . | . . . Allies Corrupted . | . . . Allies Melted . | . . . Intel | -11 -10 -10 ------- Run | Scr Mat Min Robot Analysis Total . | . . . Derelict Logs Recovered 1 | . . 1 Drone Launches . | . . . Drone Recoveries . | . . . Exploration | -11 -10 -10 ------------- Run | Scr Mat Min Turns Passed 1243 | 90 637 516 Spaces Moved 1035 | 42 640 353 Core 14 | 11 . 3 Treads . | . . . Legs 407 | 31 175 201 Wheels . | . . . Hover 614 | . 465 149 Flight . | . . . Fastest Speed 50 | 50 56 50 Average Speed 84 | 105 73 101 Slowest Speed 120 | 120 120 120 Overloaded Moves . | . . . Propulsion Burnouts . | . . . Robots Hopped . | . . . Cave-ins Triggered . | . . . Exploration Rate (%) 55 | 4 97 66 Regions Visited 2 Branch Regions 1 Pre-discovered Areas 1 | . . 1 Known Exits Taken . | . . . Unknown Exits Taken 2 | 1 1 . Scrap Searched 1 | . . 1 Spaces Dug . | . . . Terrain Destroyed 136 | . . 136 Melee . | . . . Projectile . | . . . AOE 136 | . . 136 Terrain Rammed . | . . . Walls Destroyed . | . . . Machines Disabled . | . . . Actions | -11 -10 -10 --------- Run | Scr Mat Min Total 1245 | 66 727 452 Wait 19 | . 6 13 Move 1033 | 41 639 353 Hop . | . . . Pick Up 30 | 6 13 11 Fast Attach 8 | 6 2 . Attach 13 | 1 3 9 Detach 1 | . . 1 Swap 11 | 1 5 5 Drop 18 | . 15 3 Fire 84 | 11 42 31 Melee 13 | . . 13 Ram 14 | . 2 12 Kick 1 | . . 1 Crush . | . . . Escape Stasis . | . . . Rewire . | . . . Trap . | . . . Miscellaneous . | . . . Route ------- -11/Scrapyard -10/Materials (discovered 4 exits: *Mat x3 / *Min) -10/Mines (discovered 2 exits: *Mat x2) History --------- Turn | Location | Event 13 | -11/Scrapyard | Discovered new exit (range 16) 91 | -11/Scrapyard | Entered Materials 312 | -10/Materials | Build established: Mutant 320 | -10/Materials | Discovered new exit (range 6) 394 | -10/Materials | Discovered new exit (range 6) 456 | -10/Materials | Discovered new exit (range 14) 564 | -10/Materials | Lost 3 parts (2n1u) 676 | -10/Materials | Discovered new exit (range 16) 728 | -10/Materials | Entered Mines 751 | -10/Mines | Core integrity fell below 50% 793 | -10/Mines | Lost 6 parts (1p2n1u2w) 815 | -10/Mines | Discovered new exit (range 9) 816 | -10/Mines | Learned location of Storage (-7) 872 | -10/Mines | Identified exit to Materials 948 | -10/Mines | Assembled infested the area 953 | -10/Mines | Assisted by a Guerilla fighting off Assembled 1064 | -10/Mines | Found a damaged Exp. Sensor Array with a note attached 1067 | -10/Mines | Found Prototype Device 1069 | -10/Mines | Learned 2 Materials zone layouts 1070 | -10/Mines | Identified Exp. Sensor Array 1168 | -10/Mines | Core integrity fell below 20% 1234 | -10/Mines | Destroyed 7 combat bots 1244 | -10/Mines | Destroyed by as-63636 with Assembled Heavy Rifle Last Messages --------------- 01207_ Acquired Lgt. Ion Engine. 01213_ as-73061 suffers critical hit (Smash). 01213_ Destroyed Asb. Rifle. 01213_ Destroyed Asb. Hover Unit. 01213_ as-73061 system corrupted by crushing effect. 01213_ as-73061 destroyed. 01216_ Acquired 15 matter. 01217_ Acquired 5 matter. 01219_ K-01 Serf collects debris. 01220_ The unstable cave ceiling collapses. 01222_ K-01 Serf collects debris. 01222_ K-01 Serf destroyed. 01224_ Acquired Imp. Terrain Scanner. 01227_ NQYNF>TWM|/4VWEJNVFX XHOB&1NRI NBCE0W 01231_ Acquired 9 matter. 01234_ Acquired 16 matter. 01235_ Extracted 18 matter. 01241_ Acquired Lgt. Deuterium Engine. 01243_ Dropped Lgt. Ion Engine. 01244_ Dropped Imp. Terrain Scanner. Map ----- +----------------------------------------------------+ | ?????### ### ####### # # ##????????## # | | ?????### ### ##?### ##????###### | | ????#### ## ##### ###???####### # | | ????### ## #### % #####???### | | ????## ### ### ####????##T | | ????## ##= ?### ######???????### """ | | ????### ##% ?#### * #####???????### """ | | ????#### ###= ??### ! ####???????## """ | | ?????####### ???###%* ###???????## | | ??????##### ???###= ##???????## | | ????????## ???###|%= ##???????## | | ???????### %##?## =!%= ##???????######### | | ???????## ##### *! ###???????##""""### | | ???????# % #### ##????????????????? | | ???????## ## ##????????????????? | | ???????#### ##????????????????? | | ?????????### %*##????????????????? | | ??????????#### !% % ##????????????????? | | ??????????##### ###????????????????? | | ????????????### * ####????????????????? | | ????????????## " ###?????????????????? | | ???????? ! ##??????????????????? | | ???????? %## #a # ##??????????????????? | | ???????? #### = ##??????????????????? | | ????????? ## ### ! ##??????????????????? | | ????????? ######?###@%% ###?????????????????? | | ????????? ########?###*%= ###????????????????? | | ?????????###????????## %! ###???????????????? | | ????????????????????##%= ###??????????????? | | ????????????????????##%* ###?????????????? | | ????????????????????##*= ##?????????????? | | ????????????????????## ##?????????????? | | ???????????????????? ###?????????????? | | ??????????